[Event "Late-Titled-Tuesday-Blitz-June-18-2024"]
[Site "Chess.com"]
[Date "2024.06.18"]
[Round "4"]
[White "Rud_Makarian"]
[Black "BardArtem"]
[Result "0-1"]
[WhiteElo "3056"]
[BlackElo "2874"]
[TimeControl "180+1"]
[EndTime "14:42:50 PDT"]
[Termination "BardArtem won on time"]

1. c4 {[%clk 0:03:00.1]} 1... e6 {[%clk 0:02:58.8]} 2. Nc3 {[%clk 0:03:00]} 2...
d5 {[%clk 0:02:59]} 3. d4 {[%clk 0:02:59.9]} 3... Nf6 {[%clk 0:02:59]} 4. cxd5
{[%clk 0:03:00.6]} 4... Nxd5 {[%clk 0:02:59.9]} 5. e4 {[%clk 0:02:59.1]} 5...
Nxc3 {[%clk 0:03:00.2]} 6. bxc3 {[%clk 0:03:00]} 6... c5 {[%clk 0:03:01]} 7. Nf3
{[%clk 0:03:00.8]} 7... cxd4 {[%clk 0:03:01.8]} 8. cxd4 {[%clk 0:03:01.7]} 8...
Bb4+ {[%clk 0:03:02.5]} 9. Bd2 {[%clk 0:03:02.1]} 9... Bxd2+ {[%clk 0:03:03.3]}
10. Qxd2 {[%clk 0:03:03]} 10... O-O {[%clk 0:03:04]} 11. Bc4 {[%clk 0:03:03.8]}
11... Nd7 {[%clk 0:03:04.7]} 12. O-O {[%clk 0:03:04.4]} 12... b6 {[%clk
0:03:05.5]} 13. Rfe1 {[%clk 0:03:05]} 13... Bb7 {[%clk 0:03:06.2]} 14. Rad1
{[%clk 0:03:05.7]} 14... Rc8 {[%clk 0:03:07]} 15. Bb3 {[%clk 0:03:06.4]} 15...
Nf6 {[%clk 0:03:07.7]} 16. d5 {[%clk 0:03:05.2]} 16... exd5 {[%clk 0:03:08.3]}
17. exd5 {[%clk 0:03:04.2]} 17... Qd6 {[%clk 0:03:08.7]} 18. Nd4 {[%clk
0:03:00.4]} 18... Qd7 {[%clk 0:03:09.1]} 19. Qg5 {[%clk 0:02:36.1]} 19... h6
{[%clk 0:03:05.5]} 20. Qf5 {[%clk 0:02:32.4]} 20... Rfd8 {[%clk 0:02:50.3]} 21.
d6 {[%clk 0:02:18.9]} 21... Qxd6 {[%clk 0:02:23.2]} 22. Ne6 {[%clk 0:01:59.7]}
22... Qc6 {[%clk 0:02:21.7]} 23. Nf4 {[%clk 0:01:39]} 23... Rxd1 {[%clk
0:02:10.4]} 24. Rxd1 {[%clk 0:01:39.9]} 24... Qe4 {[%clk 0:02:07.2]} 25. Qxe4
{[%clk 0:01:36.1]} 25... Bxe4 {[%clk 0:02:05.8]} 26. f3 {[%clk 0:01:34.3]} 26...
Bc6 {[%clk 0:01:57.8]} 27. Kf2 {[%clk 0:01:31.8]} 27... g5 {[%clk 0:01:47.8]}
28. Nd3 {[%clk 0:01:14.2]} 28... Bd5 {[%clk 0:01:45.5]} 29. Bxd5 {[%clk
0:01:00.5]} 29... Nxd5 {[%clk 0:01:46.4]} 30. Rd2 {[%clk 0:01:01.1]} 30... f6
{[%clk 0:01:35.1]} 31. Ne1 {[%clk 0:00:51.3]} 31... Rc5 {[%clk 0:01:33.3]} 32.
Nc2 {[%clk 0:00:48.5]} 32... Kf7 {[%clk 0:01:29]} 33. Nd4 {[%clk 0:00:46.7]}
33... Nc3 {[%clk 0:00:45.9]} 34. Nb3 {[%clk 0:00:35]} 34... Rd5 {[%clk
0:00:45.9]} 35. Rc2 {[%clk 0:00:34.8]} 35... Nb5 {[%clk 0:00:46.1]} 36. g4
{[%clk 0:00:32.5]} 36... a5 {[%clk 0:00:38.4]} 37. Rc4 {[%clk 0:00:23.1]} 37...
Nd6 {[%clk 0:00:33.1]} 38. Rc2 {[%clk 0:00:18]} 38... f5 {[%clk 0:00:28.5]} 39.
gxf5 {[%clk 0:00:16.5]} 39... Nxf5 {[%clk 0:00:28]} 40. Nd2 {[%clk 0:00:12.6]}
40... Nd6 {[%clk 0:00:24.9]} 41. Ke3 {[%clk 0:00:09.5]} 41... b5 {[%clk
0:00:22.5]} 42. Ne4 {[%clk 0:00:06.6]} 42... Nc4+ {[%clk 0:00:20]} 43. Ke2
{[%clk 0:00:05.6]} 43... a4 {[%clk 0:00:14.9]} 44. Kf2 {[%clk 0:00:04.9]} 44...
Rd4 {[%clk 0:00:06.5]} 45. Kg3 {[%clk 0:00:04.2]} 45... Ke6 {[%clk 0:00:05.9]}
46. Nc3 {[%clk 0:00:03.7]} 46... Nd6 {[%clk 0:00:05.3]} 47. Re2+ {[%clk
0:00:03.6]} 47... Kd7 {[%clk 0:00:05.5]} 48. Kf2 {[%clk 0:00:03]} 48... Rd3
{[%clk 0:00:04.6]} 49. Ne4 {[%clk 0:00:02.4]} 49... Nxe4+ {[%clk 0:00:04.6]} 50.
fxe4 {[%clk 0:00:03]} 50... b4 {[%clk 0:00:03.9]} 51. Rb2 {[%clk 0:00:02.5]}
51... b3 {[%clk 0:00:04.1]} 52. axb3 {[%clk 0:00:02.7]} 52... axb3 {[%clk
0:00:04.7]} 53. Kg2 {[%clk 0:00:01.1]} 53... Ke6 {[%clk 0:00:04.4]} 0-1

[Event "Late-Titled-Tuesday-Blitz-June-18-2024"]
[Site "Chess.com"]
[Date "2024.06.18"]
[Round "4"]
[White "WoodlandMagic"]
[Black "OverallStranger"]
[Result "0-1"]
[WhiteElo "2892"]
[BlackElo "2394"]
[TimeControl "180+1"]
[EndTime "14:42:50 PDT"]
[Termination "OverallStranger won on time"]

1. Nf3 {[%clk 0:03:00.9]} 1... c5 {[%clk 0:03:00.3]} 2. c4 {[%clk 0:02:59.7]}
2... g6 {[%clk 0:03:00.9]} 3. Nc3 {[%clk 0:02:59.1]} 3... Bg7 {[%clk 0:02:58.9]}
4. d4 {[%clk 0:02:58]} 4... cxd4 {[%clk 0:02:59.3]} 5. Nxd4 {[%clk 0:02:58]}
5... Nc6 {[%clk 0:03:00]} 6. Nc2 {[%clk 0:02:57.4]} 6... Nf6 {[%clk 0:02:58.7]}
7. e4 {[%clk 0:02:56.9]} 7... d6 {[%clk 0:02:57.2]} 8. Be2 {[%clk 0:02:57.1]}
8... O-O {[%clk 0:02:56.3]} 9. O-O {[%clk 0:02:56.7]} 9... Nd7 {[%clk
0:02:54.4]} 10. Bd2 {[%clk 0:02:50.3]} 10... Nc5 {[%clk 0:02:52.7]} 11. b4
{[%clk 0:02:50]} 11... Bxc3 {[%clk 0:02:48.5]} 12. Bxc3 {[%clk 0:02:50.9]} 12...
Nxe4 {[%clk 0:02:48.7]} 13. Bb2 {[%clk 0:02:51.1]} 13... e5 {[%clk 0:02:43.9]}
14. a3 {[%clk 0:02:32.5]} 14... Be6 {[%clk 0:02:36]} 15. Ne3 {[%clk 0:02:32]}
15... Ne7 {[%clk 0:02:28.1]} 16. Bf3 {[%clk 0:02:28.7]} 16... f5 {[%clk
0:02:25.3]} 17. Qc2 {[%clk 0:02:22.2]} 17... Qb6 {[%clk 0:01:55.7]} 18. Bxe4
{[%clk 0:02:15.4]} 18... fxe4 {[%clk 0:01:56.6]} 19. Qxe4 {[%clk 0:02:11.8]}
19... Rf4 {[%clk 0:01:54]} 20. Qd3 {[%clk 0:02:08.5]} 20... Raf8 {[%clk
0:01:50.1]} 21. c5 {[%clk 0:02:06.1]} 21... dxc5 {[%clk 0:01:36.2]} 22. Bxe5
{[%clk 0:02:06.4]} 22... R4f7 {[%clk 0:00:54.3]} 23. Bc3 {[%clk 0:02:03.6]}
23... Nc6 {[%clk 0:00:40.5]} 24. Qe4 {[%clk 0:01:57.6]} 24... Bf5 {[%clk
0:00:24.6]} 25. Nxf5 {[%clk 0:01:56.4]} 25... Rxf5 {[%clk 0:00:25.2]} 26. Rad1
{[%clk 0:01:53.3]} 26... cxb4 {[%clk 0:00:23.2]} 27. Qc4+ {[%clk 0:01:08.8]}
27... R8f7 {[%clk 0:00:20.7]} 28. Bxb4 {[%clk 0:00:56.5]} 28... Nxb4 {[%clk
0:00:10.9]} 29. axb4 {[%clk 0:00:48.6]} 29... Rxf2 {[%clk 0:00:10.5]} 30. Kh1
{[%clk 0:00:47.8]} 30... Rxf1+ {[%clk 0:00:08.6]} 31. Rxf1 {[%clk 0:00:47.6]}
31... Qc7 {[%clk 0:00:04.8]} 32. Qa2 {[%clk 0:00:38.1]} 32... Qd7 {[%clk
0:00:03.3]} 33. h3 {[%clk 0:00:33.1]} 33... a6 {[%clk 0:00:03.9]} 34. Re1 {[%clk
0:00:24.3]} 34... Kg7 {[%clk 0:00:03]} 35. Qa1+ {[%clk 0:00:24.2]} 35... Kg8
{[%clk 0:00:03.3]} 36. Qc3 {[%clk 0:00:22.3]} 36... Re7 {[%clk 0:00:03.7]} 37.
Qc4+ {[%clk 0:00:20.3]} 37... Kg7 {[%clk 0:00:04.4]} 38. Qc3+ {[%clk 0:00:20.6]}
38... Kg8 {[%clk 0:00:05]} 39. Qb3+ {[%clk 0:00:19.2]} 39... Kg7 {[%clk
0:00:05.6]} 40. Rd1 {[%clk 0:00:18.7]} 40... Qe6 {[%clk 0:00:05.5]} 41. Qc3+
{[%clk 0:00:17.8]} 41... Qf6 {[%clk 0:00:05.7]} 42. Qc4 {[%clk 0:00:16.1]} 42...
Rf7 {[%clk 0:00:05.9]} 43. Qd5 {[%clk 0:00:14.9]} 43... Qf5 {[%clk 0:00:06.1]}
44. Qd4+ {[%clk 0:00:14.6]} 44... Qf6 {[%clk 0:00:06.5]} 45. Qe3 {[%clk
0:00:13.3]} 45... Qf5 {[%clk 0:00:06.5]} 46. Qc3+ {[%clk 0:00:12.2]} 46... Qf6
{[%clk 0:00:06.9]} 47. Qc2 {[%clk 0:00:11.5]} 47... Qf5 {[%clk 0:00:07.5]} 48.
Qd2 {[%clk 0:00:11.5]} 48... Qf6 {[%clk 0:00:07.9]} 49. Re1 {[%clk 0:00:07.8]}
49... Re7 {[%clk 0:00:07.5]} 50. Rc1 {[%clk 0:00:06.7]} 50... Rf7 {[%clk
0:00:08.2]} 51. Rd1 {[%clk 0:00:04.6]} 51... Qb6 {[%clk 0:00:08.7]} 52. Qc3+
{[%clk 0:00:04.2]} 52... Qf6 {[%clk 0:00:09.4]} 53. Qd2 {[%clk 0:00:03.3]} 53...
Qc6 {[%clk 0:00:09.8]} 54. Qd4+ {[%clk 0:00:03]} 54... Qf6 {[%clk 0:00:09.6]}
55. Qe3 {[%clk 0:00:02.5]} 55... h6 {[%clk 0:00:09.7]} 56. Re1 {[%clk
0:00:02.1]} 56... Qf4 {[%clk 0:00:09.6]} 57. Qc3+ {[%clk 0:00:01.5]} 57... Qf6
{[%clk 0:00:10]} 58. Qd2 {[%clk 0:00:02.1]} 58... Re7 {[%clk 0:00:10]} 59. Rd1
{[%clk 0:00:02]} 59... Rf7 {[%clk 0:00:10.6]} 60. Qd3 {[%clk 0:00:01.9]} 60...
h5 {[%clk 0:00:11.2]} 61. Qd2 {[%clk 0:00:02.1]} 61... b6 {[%clk 0:00:10.9]} 62.
Qd3 {[%clk 0:00:02.2]} 62... a5 {[%clk 0:00:11.6]} 63. bxa5 {[%clk 0:00:02.2]}
63... bxa5 {[%clk 0:00:12.5]} 64. Qb5 {[%clk 0:00:02.5]} 64... Qf5 {[%clk
0:00:12.6]} 65. Qb2+ {[%clk 0:00:02.8]} 65... Qf6 {[%clk 0:00:12.9]} 66. Qb5
{[%clk 0:00:03]} 66... Qf5 {[%clk 0:00:13.5]} 67. Qb2+ {[%clk 0:00:02.4]} 67...
Kh7 {[%clk 0:00:14.1]} 68. Qa2 {[%clk 0:00:01.4]} 68... Rg7 {[%clk 0:00:12.6]}
0-1

[Event "Late-Titled-Tuesday-Blitz-June-18-2024"]
[Site "Chess.com"]
[Date "2024.06.18"]
[Round "4"]
[White "esrosenberg"]
[Black "katharinareinecke"]
[Result "1-0"]
[WhiteElo "2320"]
[BlackElo "2044"]
[TimeControl "180+1"]
[EndTime "14:42:51 PDT"]
[Termination "esrosenberg won on time"]

1. e4 {[%clk 0:03:00.9]} 1... c6 {[%clk 0:02:58.9]} 2. Nf3 {[%clk 0:02:57.7]}
2... d5 {[%clk 0:02:57.2]} 3. d3 {[%clk 0:02:58.3]} 3... Bg4 {[%clk 0:02:54.5]}
4. h3 {[%clk 0:02:56.1]} 4... Bh5 {[%clk 0:02:51]} 5. Nc3 {[%clk 0:02:54.4]}
5... e6 {[%clk 0:02:48.1]} 6. g4 {[%clk 0:02:51.5]} 6... Bg6 {[%clk 0:02:47.8]}
7. h4 {[%clk 0:02:51.7]} 7... h6 {[%clk 0:02:39.7]} 8. Ne5 {[%clk 0:02:46.2]}
8... Bh7 {[%clk 0:02:37.5]} 9. g5 {[%clk 0:02:43]} 9... Nd7 {[%clk 0:02:14.4]}
10. Nxf7 {[%clk 0:01:52.8]} 10... Kxf7 {[%clk 0:02:12.4]} 11. Qh5+ {[%clk
0:01:47.6]} 11... Bg6 {[%clk 0:02:01.1]} 12. Qf3+ {[%clk 0:01:41.9]} 12... Ke8
{[%clk 0:01:55.1]} 13. h5 {[%clk 0:01:33.8]} 13... Ne5 {[%clk 0:01:20.6]} 14.
Qg3 {[%clk 0:01:20.9]} 14... Bd6 {[%clk 0:01:16.8]} 15. hxg6 {[%clk 0:01:15.5]}
15... Nxg6 {[%clk 0:01:04.2]} 16. Qh3 {[%clk 0:00:47.1]} 16... Qe7 {[%clk
0:00:55.7]} 17. Qh5 {[%clk 0:00:43]} 17... Qf7 {[%clk 0:00:46.2]} 18. gxh6
{[%clk 0:00:43.2]} 18... Nxh6 {[%clk 0:00:37.7]} 19. Rg1 {[%clk 0:00:41.2]}
19... Ne5 {[%clk 0:00:20.3]} 20. Qxf7+ {[%clk 0:00:39.8]} 20... Kxf7 {[%clk
0:00:20.3]} 21. Be2 {[%clk 0:00:39.2]} 21... Rhg8 {[%clk 0:00:19]} 22. f4 {[%clk
0:00:24.4]} 22... Ng6 {[%clk 0:00:18]} 23. Bh5 {[%clk 0:00:21.7]} 23... Kf6
{[%clk 0:00:15.1]} 24. Rxg6+ {[%clk 0:00:20.1]} 24... Ke7 {[%clk 0:00:14.9]} 25.
f5 {[%clk 0:00:15.3]} 25... exf5 {[%clk 0:00:14.6]} 26. Bg5+ {[%clk 0:00:14.3]}
26... Kd7 {[%clk 0:00:14.1]} 27. exd5 {[%clk 0:00:13.1]} 27... Rae8+ {[%clk
0:00:12.8]} 28. Kd2 {[%clk 0:00:12.4]} 28... Re5 {[%clk 0:00:11.8]} 29. dxc6+
{[%clk 0:00:11.4]} 29... bxc6 {[%clk 0:00:12.7]} 30. Re1 {[%clk 0:00:09.6]}
30... Rxe1 {[%clk 0:00:11]} 31. Kxe1 {[%clk 0:00:10.5]} 31... Bb4 {[%clk
0:00:10.7]} 32. Kd2 {[%clk 0:00:10.2]} 32... Bxc3+ {[%clk 0:00:09.3]} 33. bxc3
{[%clk 0:00:09.8]} 33... Nf7 {[%clk 0:00:09.1]} 34. Bf4 {[%clk 0:00:08.3]} 34...
Nd8 {[%clk 0:00:07.4]} 35. Rd6+ {[%clk 0:00:08.1]} 35... Ke7 {[%clk 0:00:06.6]}
36. Rd4 {[%clk 0:00:07.9]} 36... Ne6 {[%clk 0:00:06.6]} 37. Ra4 {[%clk
0:00:07.4]} 37... Nxf4 {[%clk 0:00:06.5]} 38. Rxf4 {[%clk 0:00:06.7]} 38... Kf6
{[%clk 0:00:07]} 39. Bf3 {[%clk 0:00:05.8]} 39... g5 {[%clk 0:00:07.1]} 40. Rc4
{[%clk 0:00:06.2]} 40... g4 {[%clk 0:00:06.6]} 41. Rxc6+ {[%clk 0:00:07.1]}
41... Ke5 {[%clk 0:00:07]} 42. Bg2 {[%clk 0:00:06.5]} 42... f4 {[%clk
0:00:06.6]} 43. d4+ {[%clk 0:00:06.6]} 43... Kf5 {[%clk 0:00:06.4]} 44. Rc5+
{[%clk 0:00:06]} 44... Kf6 {[%clk 0:00:06.3]} 45. Ke2 {[%clk 0:00:05.9]} 45...
f3+ {[%clk 0:00:06.4]} 46. Bxf3 {[%clk 0:00:06.5]} 46... gxf3+ {[%clk
0:00:06.9]} 47. Kxf3 {[%clk 0:00:07.2]} 47... Rb8 {[%clk 0:00:06.1]} 48. Ke3
{[%clk 0:00:07.1]} 48... Ke6 {[%clk 0:00:06.1]} 49. Kd3 {[%clk 0:00:07.1]} 49...
Kd6 {[%clk 0:00:06.6]} 50. Ra5 {[%clk 0:00:07.5]} 50... Rb7 {[%clk 0:00:05.8]}
51. c4 {[%clk 0:00:07.7]} 51... Kc6 {[%clk 0:00:05.9]} 52. d5+ {[%clk
0:00:07.2]} 52... Kd6 {[%clk 0:00:05.8]} 53. Kd4 {[%clk 0:00:06.9]} 53... Rb2
{[%clk 0:00:05.1]} 54. c5+ {[%clk 0:00:06.8]} 54... Kd7 {[%clk 0:00:04.9]} 55.
Rxa7+ {[%clk 0:00:06.8]} 55... Kc8 {[%clk 0:00:05.1]} 56. c4 {[%clk 0:00:06.9]}
56... Rd2+ {[%clk 0:00:04.2]} 57. Ke5 {[%clk 0:00:07.1]} 57... Rc2 {[%clk
0:00:04]} 58. Kd6 {[%clk 0:00:06.8]} 58... Kb8 {[%clk 0:00:03.8]} 59. Ra4 {[%clk
0:00:05.7]} 59... Rh2 {[%clk 0:00:02.4]} 60. Kc6 {[%clk 0:00:06.1]} 60... Rh6+
{[%clk 0:00:02.5]} 61. d6 {[%clk 0:00:07]} 61... Rh7 {[%clk 0:00:01.1]} 62. Rb4+
{[%clk 0:00:07.9]} 62... Kc8 {[%clk 0:00:01.2]} 63. Rb3 {[%clk 0:00:07.5]} 63...
Rh6 {[%clk 0:00:01]} 64. Re3 {[%clk 0:00:08]} 64... Kb8 {[%clk 0:00:01]} 65.
Re8+ {[%clk 0:00:08]} 65... Ka7 {[%clk 0:00:01.5]} 66. Kc7 {[%clk 0:00:08.5]}
1-0

[Event "Late-Titled-Tuesday-Blitz-June-18-2024"]
[Site "Chess.com"]
[Date "2024.06.18"]
[Round "4"]
[White "Jospem"]
[Black "K_A_S_T_O_R"]
[Result "1-0"]
[WhiteElo "3060"]
[BlackElo "2833"]
[TimeControl "180+1"]
[EndTime "14:42:53 PDT"]
[Termination "Jospem won by resignation"]

1. e4 {[%clk 0:03:00.9]} 1... c5 {[%clk 0:03:00.5]} 2. Nf3 {[%clk 0:03:00.9]}
2... d6 {[%clk 0:03:01]} 3. c3 {[%clk 0:03:01.5]} 3... Nf6 {[%clk 0:03:01]} 4.
h3 {[%clk 0:03:02.1]} 4... g6 {[%clk 0:03:00.3]} 5. Bd3 {[%clk 0:03:02.2]} 5...
Bg7 {[%clk 0:02:57.9]} 6. Bc2 {[%clk 0:03:02.7]} 6... e5 {[%clk 0:02:56.6]} 7.
O-O {[%clk 0:03:02.9]} 7... O-O {[%clk 0:02:56.2]} 8. d3 {[%clk 0:03:03.4]} 8...
h6 {[%clk 0:02:55.5]} 9. Nbd2 {[%clk 0:03:03.5]} 9... Nc6 {[%clk 0:02:55.6]} 10.
a3 {[%clk 0:03:03.2]} 10... Rb8 {[%clk 0:02:48]} 11. b4 {[%clk 0:03:02.4]} 11...
cxb4 {[%clk 0:02:47.9]} 12. axb4 {[%clk 0:03:02.4]} 12... b5 {[%clk 0:02:48.3]}
13. Nb3 {[%clk 0:02:59.8]} 13... Re8 {[%clk 0:02:45.1]} 14. Be3 {[%clk
0:02:59.9]} 14... a6 {[%clk 0:02:44.8]} 15. Re1 {[%clk 0:02:50.6]} 15... Ra8
{[%clk 0:02:40.7]} 16. Qd2 {[%clk 0:02:44.5]} 16... Kh7 {[%clk 0:02:39.5]} 17.
Rad1 {[%clk 0:02:43.5]} 17... a5 {[%clk 0:02:37.2]} 18. bxa5 {[%clk 0:02:43.8]}
18... Nxa5 {[%clk 0:02:37.5]} 19. Rb1 {[%clk 0:02:35]} 19... Be6 {[%clk
0:02:35]} 20. Nc1 {[%clk 0:02:32.9]} 20... Bd7 {[%clk 0:02:30.7]} 21. Ne2 {[%clk
0:02:32.4]} 21... Qc7 {[%clk 0:02:30.7]} 22. Rec1 {[%clk 0:02:21.8]} 22... d5
{[%clk 0:02:30]} 23. Ng3 {[%clk 0:02:01.2]} 23... dxe4 {[%clk 0:02:28.5]} 24.
dxe4 {[%clk 0:02:02.1]} 24... Nc4 {[%clk 0:02:27.9]} 25. Qe2 {[%clk 0:02:02.7]}
25... Na3 {[%clk 0:02:20.6]} 26. Ra1 {[%clk 0:02:00.6]} 26... Nxc2 {[%clk
0:02:17.5]} 27. Qxc2 {[%clk 0:02:01.5]} 27... Be6 {[%clk 0:02:11.8]} 28. Rab1
{[%clk 0:02:00.5]} 28... Ra2 {[%clk 0:02:09.3]} 29. Rb2 {[%clk 0:02:00.7]} 29...
Rxb2 {[%clk 0:02:09.1]} 30. Qxb2 {[%clk 0:02:01.6]} 30... Bc4 {[%clk 0:02:05.1]}
31. Nd2 {[%clk 0:02:02.1]} 31... Bd3 {[%clk 0:02:04.8]} 32. Ra1 {[%clk
0:01:57.5]} 32... Re7 {[%clk 0:01:53.9]} 33. Qb3 {[%clk 0:01:45.1]} 33... Rd7
{[%clk 0:01:52]} 34. Ra6 {[%clk 0:01:40.1]} 34... Qb7 {[%clk 0:01:49.5]} 35. Qa2
{[%clk 0:01:19.5]} 35... Qc8 {[%clk 0:01:46.5]} 36. Ra7 {[%clk 0:01:11.3]} 36...
Rxa7 {[%clk 0:01:35.3]} 37. Qxa7 {[%clk 0:01:12.2]} 37... Kg8 {[%clk 0:01:35.3]}
38. Bc5 {[%clk 0:00:56.2]} 38... Qc6 {[%clk 0:01:25.9]} 39. f3 {[%clk
0:00:37.7]} 39... h5 {[%clk 0:01:18]} 40. Bb4 {[%clk 0:00:33]} 40... h4 {[%clk
0:01:15.7]} 41. Ngf1 {[%clk 0:00:32.3]} 41... Bh6 {[%clk 0:01:13]} 42. Qf2
{[%clk 0:00:26.3]} 42... Bg5 {[%clk 0:01:05]} 43. Qc5 {[%clk 0:00:26.2]} 43...
Qxc5+ {[%clk 0:00:59.3]} 44. Bxc5 {[%clk 0:00:26.4]} 44... Nh5 {[%clk
0:00:58.9]} 45. Ne3 {[%clk 0:00:19.7]} 45... Nf4 {[%clk 0:00:57.6]} 46. Kf2
{[%clk 0:00:20.2]} 46... Ne2 {[%clk 0:00:53.1]} 47. Bb4 {[%clk 0:00:20.6]} 47...
Nc1 {[%clk 0:00:52.9]} 48. Ndf1 {[%clk 0:00:15.8]} 48... Bb1 {[%clk 0:00:49.6]}
49. Ba5 {[%clk 0:00:13.2]} 49... Nd3+ {[%clk 0:00:48.1]} 50. Ke2 {[%clk
0:00:13.6]} 50... Nf4+ {[%clk 0:00:48.1]} 51. Kf2 {[%clk 0:00:14.1]} 51... Be7
{[%clk 0:00:46.9]} 52. Bb4 {[%clk 0:00:10.9]} 52... Nd3+ {[%clk 0:00:46.3]} 53.
Ke2 {[%clk 0:00:10.5]} 53... Nxb4 {[%clk 0:00:46.9]} 54. cxb4 {[%clk 0:00:11.4]}
54... Bxb4 {[%clk 0:00:47.1]} 55. Nd5 {[%clk 0:00:11.9]} 55... Bd6 {[%clk
0:00:44.6]} 56. Nfe3 {[%clk 0:00:12.1]} 56... Kg7 {[%clk 0:00:44.6]} 57. Kd2
{[%clk 0:00:10.9]} 57... Ba2 {[%clk 0:00:43.7]} 58. Nc3 {[%clk 0:00:10.3]} 58...
Bc4 {[%clk 0:00:42.3]} 59. Nxc4 {[%clk 0:00:09.8]} 59... bxc4 {[%clk 0:00:42.9]}
60. Nd5 {[%clk 0:00:10.4]} 60... f5 {[%clk 0:00:37.6]} 61. Kc3 {[%clk
0:00:10.6]} 61... Kf7 {[%clk 0:00:38.1]} 62. Kxc4 {[%clk 0:00:11]} 62... Ke6
{[%clk 0:00:38.7]} 63. Kb5 {[%clk 0:00:11.6]} 63... fxe4 {[%clk 0:00:36.9]} 64.
fxe4 {[%clk 0:00:12.5]} 64... Ba3 {[%clk 0:00:36.8]} 65. Kc4 {[%clk 0:00:13.2]}
65... Kd6 {[%clk 0:00:33.4]} 66. Kd3 {[%clk 0:00:14.1]} 66... Bc1 {[%clk
0:00:32.7]} 67. Ke2 {[%clk 0:00:14.5]} 67... Ke6 {[%clk 0:00:32.5]} 68. Kf3
{[%clk 0:00:15.1]} 68... Bd2 {[%clk 0:00:31.8]} 69. Kg4 {[%clk 0:00:15.5]} 69...
g5 {[%clk 0:00:31.2]} 70. Kh5 {[%clk 0:00:13.9]} 70... Kf7 {[%clk 0:00:29.3]}
71. Nb6 {[%clk 0:00:12.5]} 71... Be3 {[%clk 0:00:27.3]} 72. Nc4 {[%clk
0:00:12.4]} 72... Bf4 {[%clk 0:00:27.5]} 73. Nd6+ {[%clk 0:00:08.8]} 73... Kf6
{[%clk 0:00:27.6]} 74. Nf5 {[%clk 0:00:09.7]} 74... Be3 {[%clk 0:00:26.6]} 75.
Nxe3 {[%clk 0:00:08.6]} 1-0

[Event "Late-Titled-Tuesday-Blitz-June-18-2024"]
[Site "Chess.com"]
[Date "2024.06.18"]
[Round "4"]
[White "matagordo"]
[Black "santosalberto1987"]
[Result "1-0"]
[WhiteElo "2399"]
[BlackElo "2563"]
[TimeControl "180+1"]
[EndTime "14:43:00 PDT"]
[Termination "matagordo won by resignation"]

1. d4 {[%clk 0:03:00.9]} 1... Nf6 {[%clk 0:02:59.8]} 2. Bf4 {[%clk 0:03:00.7]}
2... g6 {[%clk 0:02:59.2]} 3. Nc3 {[%clk 0:02:59.9]} 3... d5 {[%clk 0:02:59.2]}
4. e3 {[%clk 0:03:00.2]} 4... Bg7 {[%clk 0:02:58.8]} 5. h4 {[%clk 0:03:00.7]}
5... c6 {[%clk 0:02:51.2]} 6. Nf3 {[%clk 0:02:58]} 6... Bg4 {[%clk 0:02:50.2]}
7. Qd2 {[%clk 0:02:55.2]} 7... Bxf3 {[%clk 0:02:49.2]} 8. gxf3 {[%clk
0:02:56.1]} 8... Nbd7 {[%clk 0:02:48.6]} 9. O-O-O {[%clk 0:02:48]} 9... h5
{[%clk 0:02:45.5]} 10. e4 {[%clk 0:02:46.7]} 10... dxe4 {[%clk 0:02:40.3]} 11.
fxe4 {[%clk 0:02:47.6]} 11... O-O {[%clk 0:02:40]} 12. Bh6 {[%clk 0:02:41.8]}
12... e5 {[%clk 0:02:32]} 13. Bxg7 {[%clk 0:02:28.6]} 13... Kxg7 {[%clk
0:02:32.9]} 14. Rg1 {[%clk 0:02:17.9]} 14... exd4 {[%clk 0:02:30.7]} 15. Qxd4
{[%clk 0:02:18.8]} 15... Qb6 {[%clk 0:02:30.5]} 16. Qxb6 {[%clk 0:01:58.3]}
16... axb6 {[%clk 0:02:24.6]} 17. Bh3 {[%clk 0:01:54.2]} 17... Ne5 {[%clk
0:02:22.7]} 18. f4 {[%clk 0:01:47.7]} 18... Nc4 {[%clk 0:02:18.5]} 19. e5 {[%clk
0:01:42.7]} 19... Ng4 {[%clk 0:02:17.4]} 20. Bxg4 {[%clk 0:01:38.7]} 20... hxg4
{[%clk 0:02:17.6]} 21. Rd7 {[%clk 0:01:39.2]} 21... Ne3 {[%clk 0:02:05.4]} 22.
Rxb7 {[%clk 0:01:28.9]} 22... b5 {[%clk 0:02:05.3]} 23. a3 {[%clk 0:01:23]}
23... Rab8 {[%clk 0:02:00.4]} 24. Rxb8 {[%clk 0:01:02]} 24... Rxb8 {[%clk
0:02:01.3]} 25. b3 {[%clk 0:00:59.9]} 25... Rh8 {[%clk 0:02:00.9]} 26. Kd2
{[%clk 0:00:58.9]} 26... Nf5 {[%clk 0:01:55]} 27. Rxg4 {[%clk 0:00:58.8]} 27...
Nxh4 {[%clk 0:01:55.5]} 28. Ne4 {[%clk 0:00:57.7]} 28... Nf5 {[%clk 0:01:55.2]}
29. Rg2 {[%clk 0:00:46.6]} 29... Rh4 {[%clk 0:01:49.7]} 30. Rf2 {[%clk
0:00:43.3]} 30... Nd4 {[%clk 0:01:49.8]} 31. Ng5 {[%clk 0:00:33.7]} 31... Rh1
{[%clk 0:01:44.2]} 32. Kc3 {[%clk 0:00:33.2]} 32... Nf5 {[%clk 0:01:38.9]} 33.
Kb4 {[%clk 0:00:32.6]} 33... Ne7 {[%clk 0:01:34.4]} 34. Kc5 {[%clk 0:00:21.7]}
34... f6 {[%clk 0:01:23.7]} 35. Ne4 {[%clk 0:00:12.5]} 35... fxe5 {[%clk
0:01:22.9]} 36. fxe5 {[%clk 0:00:13.4]} 36... Re1 {[%clk 0:01:22.6]} 37. Ng5
{[%clk 0:00:10.3]} 37... Rxe5+ {[%clk 0:01:19.9]} 38. Kd6 {[%clk 0:00:10.7]}
38... Rxg5 {[%clk 0:01:14.4]} 39. Kxe7 {[%clk 0:00:11.2]} 39... Rd5 {[%clk
0:01:04.7]} 40. Rf6 {[%clk 0:00:07.6]} 40... Rc5 {[%clk 0:00:53.6]} 41. Rf2
{[%clk 0:00:04.1]} 41... g5 {[%clk 0:00:47.7]} 42. Kd6 {[%clk 0:00:02.7]} 42...
Rc3 {[%clk 0:00:47.7]} 43. Re2 {[%clk 0:00:01.2]} 43... Kg6 {[%clk 0:00:46.8]}
44. Ke5 {[%clk 0:00:01]} 44... Kh5 {[%clk 0:00:44.1]} 45. Kd4 {[%clk 0:00:01.4]}
45... Rf3 {[%clk 0:00:42.8]} 46. Kc5 {[%clk 0:00:01.4]} 46... Rc3+ {[%clk
0:00:40.4]} 47. Kd4 {[%clk 0:00:01.4]} 47... Rf3 {[%clk 0:00:38.7]} 48. Kc5
{[%clk 0:00:01.4]} 48... Rf6 {[%clk 0:00:39.3]} 49. a4 {[%clk 0:00:01.6]} 49...
bxa4 {[%clk 0:00:39.4]} 50. bxa4 {[%clk 0:00:02.5]} 50... g4 {[%clk 0:00:39.4]}
51. a5 {[%clk 0:00:02.1]} 51... g3 {[%clk 0:00:39.5]} 52. a6 {[%clk 0:00:01.9]}
52... Kg4 {[%clk 0:00:32.2]} 53. a7 {[%clk 0:00:01.3]} 53... Rf8 {[%clk
0:00:31]} 54. Kxc6 {[%clk 0:00:01.6]} 54... Kf3 {[%clk 0:00:30.7]} 55. Rd2
{[%clk 0:00:01]} 55... Ke3 {[%clk 0:00:29.1]} 56. Rd1 {[%clk 0:00:01.5]} 56...
g2 {[%clk 0:00:24.6]} 57. Kb7 {[%clk 0:00:01.1]} 57... Rf7+ {[%clk 0:00:24]} 58.
Kb8 {[%clk 0:00:01.2]} 58... Rf8+ {[%clk 0:00:24]} 59. Kb7 {[%clk 0:00:01.9]}
59... Rf7+ {[%clk 0:00:22.4]} 60. Kb6 {[%clk 0:00:02.6]} 60... Rf8 {[%clk
0:00:22.1]} 61. c4 {[%clk 0:00:02.5]} 61... Kf2 {[%clk 0:00:14.9]} 62. c5 {[%clk
0:00:02.2]} 62... g1=Q {[%clk 0:00:14.1]} 63. Rxg1 {[%clk 0:00:02.3]} 63... Kxg1
{[%clk 0:00:15]} 64. c6 {[%clk 0:00:02.1]} 64... Kf2 {[%clk 0:00:12]} 65. Kb7
{[%clk 0:00:02.3]} 65... Ke3 {[%clk 0:00:11.5]} 66. a8=Q {[%clk 0:00:02]} 66...
Rxa8 {[%clk 0:00:11.8]} 67. Kxa8 {[%clk 0:00:02.8]} 67... Kd4 {[%clk 0:00:11.2]}
68. c7 {[%clk 0:00:02.3]} 1-0